fUST/lending_fUST_20241017
["ID","MTS","AMOUNT","RATE_DAILY","PERIOD"]
[340385437,1729157034361,-500.0,0.00042465,60]
[340385438,1729157034399,-500.0,0.00042465,60]
[340385439,1729157034435,-500.0,0.00042465,60]
[340385440,1729157034472,-500.0,0.00042465,60]
[340385441,1729157034509,-509.09367496,0.00042465,60]
[340385442,1729157034546,-890.34,0.00042465,60]
[340385443,1729157034585,-500.0,0.00042465,60]
[340385444,1729157034624,-630.62,0.00042465,60]
[340385445,1729157034664,-665.23,0.00042465,60]
[340385446,1729157034703,-1089.03,0.00042465,60]
[340385447,1729157034742,-635.80162713,0.00042465,60]
[340385448,1729157034778,-511.52402602,0.00042465,60]
[340385449,1729157034815,-566.05,0.00042465,60]
[340385450,1729157034851,-500.0,0.00042465,60]
[340385451,1729157034889,-500.0,0.00042465,60]
[340385452,1729157034927,-319.63044171,0.00042465,60]
[340385453,1729157034964,-814.54,0.00042465,60]
[340385454,1729157034999,-575.83,0.00042465,60]
[340385455,1729157035035,-500.0,0.00042465,60]
[340385456,1729157035070,-2500.0,0.00042465,120]
[340385457,1729157035108,-500.0,0.00042465,60]
[340385458,1729157035145,-1433.2,0.00042465,60]
[340385459,1729157035180,-500.0,0.00042465,60]
[340385460,1729157035218,-370.63064868,0.00042465,60]
[340385461,1729157035253,-500.0,0.00042465,60]
[340385462,1729157035289,-542.84,0.00042465,60]
[340385463,1729157035324,-500.0,0.00042465,60]
[340385464,1729157035365,-500.0,0.00042465,60]
[340385465,1729157035399,-500.0,0.00042465,60]
[340385466,1729157035434,-500.0,0.00042465,60]
[340385467,1729157035468,-2442.96,0.00042465,60]
[340385468,1729157035505,-500.0,0.00042465,60]
[340385469,1729157035539,-500.0,0.00042465,60]
[340385470,1729157035575,-500.0,0.00042465,60]
[340385471,1729157035609,-500.0,0.00042465,60]
[340385472,1729157035644,-593.45432634,0.00042465,60]
[340385473,1729157035678,-1194.49,0.00042465,60]
[340385474,1729157035712,-2561.43,0.00042465,60]
[340385475,1729157035748,-500.0,0.00042465,60]
[340385476,1729157035782,-827.35,0.00042465,60]
[340385477,1729157035818,-1082.7,0.00042465,60]
[340385478,1729157035853,-500.0,0.00042465,60]
[340385479,1729157035888,-760.91,0.00042465,60]
[340385480,1729157035925,-500.0,0.00042465,60]
[340385481,1729157035960,-500.0,0.00042465,60]
[340385482,1729157035997,-500.0,0.00042465,60]
[340385483,1729157036033,-500.0,0.00042465,60]
[340385484,1729157036071,-500.0,0.00042465,60]
[340385485,1729157036110,-500.0,0.00042465,60]
[340385486,1729157036148,-500.0,0.00042465,60]
[340385487,1729157036185,-500.0,0.00042465,60]
[340385488,1729157036222,-500.0,0.00042465,60]
[340385489,1729157036258,-1109.25,0.00042465,60]
[340385490,1729157036294,-500.0,0.00042465,60]
[340385491,1729157036329,-528.63170764,0.00042465,60]
[340385492,1729157036366,-5116.54,0.00042465,60]
[340385493,1729157036401,-638.68323052,0.00042465,60]
[340385494,1729157036437,-935.2,0.00042465,60]
[340385495,1729157036473,-533.73381823,0.00042465,60]
[340385496,1729157036507,-500.0,0.00042465,60]
[340385497,1729157036541,-510.20510929,0.00042465,60]
[340385498,1729157036576,-866.24,0.00042465,60]
[340385499,1729157036610,-500.0,0.00042465,60]
[340385500,1729157036643,-1240.33,0.00042465,60]
[340385501,1729157036679,-500.0,0.00042465,60]
[340385502,1729157036716,-500.0,0.00042465,60]
[340385503,1729157036752,-500.0,0.00042465,60]
[340385504,1729157036787,-901.88,0.00042465,60]
[340385505,1729157036824,-500.0,0.00042465,60]
[340385506,1729157036862,-567.22962744,0.00042465,60]
[340385507,1729157036898,-620.69495205,0.00042465,60]
[340385508,1729157036935,-500.0,0.00042465,60]
[340385509,1729157036971,-1035.23,0.00042465,60]
[340385510,1729157037007,-500.0,0.00042465,60]
[340385511,1729157037041,-500.0,0.00042465,60]
[340385512,1729157037077,-657.41,0.00042465,60]
[340385513,1729157037111,-500.0,0.00042465,60]
[340385514,1729157037146,-500.0,0.00042465,60]
[340385515,1729157037180,-500.0,0.00042465,60]
[340385516,1729157037214,-500.0,0.00042465,60]
[340385517,1729157037249,-500.0,0.00042465,60]
[340385518,1729157037282,-575.30283889,0.00042465,60]
[340385519,1729157037316,-500.0,0.00042465,60]
[340385520,1729157037350,-500.0,0.00042465,60]
[340385521,1729157037386,-506.23593452,0.00042465,60]
[340385522,1729157037420,-500.0,0.00042465,60]
[340385523,1729157037456,-500.0,0.00042465,60]
[340385524,1729157037490,-500.0,0.00042465,60]
[340385525,1729157037524,-500.0,0.00042465,60]
[340385526,1729157037559,-500.0,0.00042465,60]
[340385527,1729157037593,-500.0,0.00042465,60]
[340385528,1729157037628,-973.81,0.00042465,60]
[340385529,1729157037662,-500.0,0.00042465,60]
[340385530,1729157037697,-624.31332548,0.00042465,60]
[340385531,1729157037731,-1458.33,0.00042465,60]
[340385532,1729157037766,-249.25924296,0.00042465,60]
[340385533,1729157037994,-762.66,0.00042465,60]
[340385534,1729157038029,-500.0,0.00042465,60]
[340385535,1729157038064,-1353.67,0.00042465,60]
[340385536,1729157038102,-500.0,0.00042465,60]
[340385537,1729157038139,-500.0,0.00042465,60]
[340385538,1729157038175,-650.71,0.00042465,60]
[340385539,1729157038213,-500.0,0.00042465,60]
[340385540,1729157038249,-557.41783074,0.00042465,60]
[340385541,1729157038285,-500.0,0.00042465,60]
[340385542,1729157038321,-596.63446283,0.00042465,60]
[340385543,1729157038358,-500.0,0.00042465,60]
[340385544,1729157038392,-500.0,0.00042465,60]
[340385545,1729157038426,-835.54,0.00042465,60]
[340385546,1729157038460,-553.888806,0.00042465,60]
[340385547,1729157038494,-1182.57,0.00042465,60]
[340385548,1729157038528,-500.0,0.00042465,60]
[340385549,1729157038562,-500.0,0.00042465,60]
[340385550,1729157038597,-500.0,0.00042465,60]
[340385551,1729157038631,-898.16,0.00042465,60]
[340385552,1729157038665,-500.0,0.00042465,60]
[340385553,1729157038700,-759.22,0.00042465,60]
[340385554,1729157038734,-518.23716009,0.00042465,60]
[340385555,1729157038769,-543.3372125,0.00042465,60]
[340385556,1729157038804,-500.0,0.00042465,60]
[340385557,1729157038838,-500.0,0.00042465,60]
[340385558,1729157038873,-500.0,0.00042465,60]
[340385559,1729157038908,-788.25,0.00042465,60]
[340385560,1729157038943,-829.97,0.00042465,120]
[340385561,1729157038977,-500.0,0.00042465,60]
[340385562,1729157039011,-354.46406265,0.00042465,60]
[340385563,1729157039045,-2230.79,0.00042465,60]
[340385564,1729157039083,-500.0,0.00042465,60]
[340385565,1729157039120,-500.0,0.00042465,60]
[340385566,1729157039154,-500.0,0.00042465,60]
[340385567,1729157039192,-1156.09,0.00042465,60]
[340385568,1729157039226,-500.0,0.00042465,60]
[340385569,1729157039263,-500.0,0.00042465,60]
[340385570,1729157039299,-500.0,0.00042465,60]
[340385571,1729157039335,-512.86,0.00042465,60]
[340385572,1729157039371,-500.0,0.00042465,60]
[340385573,1729157039407,-500.0,0.00042465,60]
[340385574,1729157039447,-1055.28,0.00042465,60]
[340385575,1729157039482,-861.18,0.00042465,60]
[340385576,1729157039517,-905.29,0.00042465,60]
[340385577,1729157039551,-547.07038882,0.00042465,60]
[340385578,1729157039586,-500.0,0.00042465,60]
[340385579,1729157039621,-560.52244384,0.00042465,60]
[340385580,1729157039657,-279.17740158,0.00042465,60]
[340385581,1729157039693,-1174.01,0.00042465,60]
[340385582,1729157039728,-593.86,0.00042465,60]
[340385583,1729157039764,-522.36,0.00042465,60]
[340385584,1729157039798,-500.0,0.00042465,60]
[340385585,1729157039833,-538.32586,0.00042465,60]
[340385586,1729157039869,-2661.39,0.00042465,60]
[340385587,1729157039908,-4800.3,0.00042465,60]
[340385588,1729157039949,-500.0,0.00042465,60]
[340385589,1729157039987,-500.0,0.00042465,60]
[340385590,1729157040024,-500.0,0.00042465,60]
[340385591,1729157040061,-548.64,0.00042465,60]
[340385592,1729157040103,-5161.34,0.00042465,60]
[340385593,1729157040144,-971.22,0.00042465,60]
[340385594,1729157040186,-500.0,0.00042465,60]
[340385595,1729157040226,-1038.67,0.00042465,60]
[340385596,1729157040266,-500.0,0.00042465,60]
[340385597,1729157040307,-1088.09,0.00042465,60]
[340385598,1729157040347,-500.0,0.00042465,60]
[340385599,1729157040388,-2534.2,0.00042465,60]
[340385600,1729157040429,-966.99,0.00042465,60]
[340385601,1729157040468,-876.41,0.00042465,60]
[340385602,1729157040506,-500.0,0.00042465,60]
[340385603,1729157040543,-500.0,0.00042465,60]
[340385604,1729157040580,-3258.44,0.00042465,60]
[340385605,1729157040617,-500.0,0.00042465,60]
[340385606,1729157040654,-500.0,0.00042465,60]
[340385607,1729157040690,-500.0,0.00042465,60]
[340385608,1729157040726,-500.0,0.00042465,60]
[340385609,1729157040763,-535.67120219,0.00042465,60]
[340385610,1729157040801,-500.0,0.00042465,60]
[340385611,1729157040840,-614.74147904,0.00042465,60]
[340385612,1729157040876,-500.0,0.00042465,60]
[340385613,1729157040917,-500.0,0.00042465,60]
[340385614,1729157040955,-2603.18,0.00042465,60]
[340385615,1729157040994,-500.0,0.00042465,60]
[340385616,1729157041032,-1334.81,0.00042465,60]
[340385617,1729157041071,-988.07,0.00042465,60]
[340385618,1729157041114,-746.44,0.00042465,60]
[340385619,1729157041153,-307.69258734,0.00042465,60]
[340385620,1729157041192,-500.0,0.00042465,60]
[340385621,1729157041230,-500.0,0.00042465,60]
[340385622,1729157041266,-782.02,0.00042465,60]
[340385623,1729157041303,-500.0,0.00042465,60]
[340385624,1729157041339,-407.27000384,0.00042465,60]
[340385625,1729157041376,-500.0,0.00042465,60]
[340385626,1729157041412,-500.0,0.00042465,60]
[340385627,1729157041450,-500.0,0.00042465,60]
[340385628,1729157041487,-500.0,0.00042465,60]
[340385629,1729157041525,-500.0,0.00042465,60]
[340385630,1729157041564,-500.0,0.00042465,60]
[340385631,1729157041605,-500.0,0.00042465,60]
[340385632,1729157041645,-500.0,0.00042465,60]
[340385633,1729157041683,-1159.47,0.00042465,60]
[340385634,1729157041722,-980.67,0.00042465,60]
[340385635,1729157041760,-862.09,0.00042465,60]
[340385636,1729157041798,-500.0,0.00042465,60]
[340385637,1729157042049,-500.0,0.00042465,60]
[340385638,1729157042092,-581.12,0.00042465,60]
[340385639,1729157042136,-500.0,0.00042465,60]
[340385640,1729157042180,-187.62038498,0.00042465,60]
[340385641,1729157042222,-500.0,0.00042465,60]
[340385642,1729157042263,-789.83,0.00042465,60]
[340385643,1729157042304,-828.72,0.00042465,60]
[340385644,1729157042343,-500.0,0.00042465,60]
[340385645,1729157042387,-859.58,0.00042465,60]
[340385646,1729157042429,-1003.18,0.00042465,60]
[340385647,1729157042480,-500.0,0.00042465,60]
[340385648,1729157042544,-500.0,0.00042465,60]
[340385649,1729157042591,-500.0,0.00042465,60]
[340385650,1729157042638,-500.0,0.00042465,60]
[340385651,1729157042678,-500.0,0.00042465,60]
[340385652,1729157042718,-520.21176634,0.00042465,60]
[340385653,1729157042755,-701.04,0.00042465,60]
[340385654,1729157042792,-567.5,0.00042465,60]
[340385655,1729157042830,-500.0,0.00042465,60]
[340385656,1729157042868,-500.0,0.00042465,60]
[340385657,1729157042907,-8355.78,0.00042465,60]
[340385658,1729157042944,-500.0,0.00042465,60]
[340385659,1729157042982,-517.36356593,0.00042465,60]
[340385660,1729157043025,-3000.0,0.00042465,60]
[340385661,1729157043065,-1357.32,0.00042465,60]
[340385662,1729157043113,-539.10338371,0.00042465,60]
[340385663,1729157043156,-500.0,0.00042465,60]
[340385664,1729157043202,-500.0,0.00042465,60]
[340385665,1729157043246,-1167.08,0.00042465,60]
[340385666,1729157043290,-500.0,0.00042465,60]
[340385667,1729157043333,-541.26978646,0.00042465,60]
[340385668,1729157043375,-625.07141337,0.00042465,60]
[340385669,1729157043417,-1825.51,0.00042465,60]
[340385670,1729157043457,-500.0,0.00042465,60]
[340385671,1729157043497,-500.0,0.00042465,60]
[340385672,1729157043538,-1537.2,0.00042465,60]
[340385673,1729157043578,-500.0,0.00042465,60]
[340385674,1729157043618,-635.34,0.00042465,60]
[340385675,1729157043656,-485.12669366,0.00042465,60]
[340385676,1729157043694,-699.46,0.00042465,60]
[340385677,1729157043731,-500.0,0.00042465,60]
[340385678,1729157043769,-504.08,0.00042465,60]
[340385679,1729157043805,-892.38,0.00042465,60]
[340385680,1729157043843,-958.3,0.00042465,60]
[340385681,1729157043882,-2166.93,0.00042465,60]
[340385682,1729157043921,-500.0,0.00042465,60]
[340385683,1729157043959,-500.0,0.00042465,60]
[340385684,1729157043998,-954.61,0.00042465,60]
[340385685,1729157044035,-854.83,0.00042465,60]
[340385686,1729157044074,-500.0,0.00042465,60]
[340385687,1729157044115,-500.0,0.00042465,60]
[340385688,1729157044156,-152.42639406,0.00042465,60]
[340385689,1729157044201,-500.0,0.00042465,60]
[340385690,1729157044245,-500.0,0.00042465,60]
[340385691,1729157044288,-955.25,0.00042465,60]
[340385692,1729157044331,-500.0,0.00042465,60]
[340385693,1729157044374,-500.0,0.00042465,60]
[340385694,1729157044415,-598.05513355,0.00042465,60]
[340385695,1729157044455,-1247.53,0.00042465,60]
[340385696,1729157044494,-750.89,0.00042465,60]
[340385697,1729157044534,-471.90686868,0.00042465,60]
[340385698,1729157044574,-178.82413478,0.00042465,60]
[340385699,1729157044623,-517.26150245,0.00042465,60]
[340385700,1729157044667,-500.0,0.00042465,60]
[340385701,1729157044707,-828.59,0.00042465,60]
[340385702,1729157044747,-1164.53,0.00042465,60]
[340385703,1729157044789,-588.42,0.00042465,60]
[340385704,1729157044827,-500.0,0.00042465,60]
[340385705,1729157044865,-166.59442498,0.00042465,60]
[340385706,1729157044904,-500.0,0.00042465,60]
[340385707,1729157044944,-1967.01,0.00042465,60]
[340385708,1729157044984,-500.0,0.00042465,60]
[340385709,1729157045024,-500.0,0.00042465,60]
[340385710,1729157045062,-943.8,0.00042465,60]
[340385711,1729157045108,-1847.58,0.00042465,60]
[340385712,1729157045147,-1013.16,0.00042465,60]
[340385713,1729157045185,-1379.05,0.00042465,60]
[340385714,1729157045224,-603.18603422,0.00042465,60]
[340385715,1729157045264,-500.0,0.00042465,60]
[340385716,1729157045304,-12882.76,0.00042465,60]
[340385717,1729157045343,-1143.49,0.00042465,60]
[340385718,1729157045382,-852.68,0.00042465,60]
[340385719,1729157045420,-500.0,0.00042465,60]
[340385720,1729157045459,-2453.69,0.00042465,60]
[340385721,1729157045495,-500.0,0.00042465,60]
[340385722,1729157045535,-1754.82,0.00042465,60]
[340385723,1729157045572,-500.0,0.00042465,60]
[340385724,1729157045608,-500.0,0.00042465,60]
[340385725,1729157045645,-500.0,0.00042465,60]
[340385726,1729157045682,-574.08,0.00042465,60]
[340385727,1729157045720,-16244.07,0.00042465,60]
[340385728,1729157045758,-500.0,0.00042465,60]
[340385729,1729157045795,-509.93620296,0.00042465,60]
[340385730,1729157045831,-500.0,0.00042465,60]
[340385731,1729157045869,-527.22,0.00042465,60]
[340385732,1729157045907,-589.88,0.00042465,60]
[340385733,1729157045947,-500.0,0.00042465,60]
[340385734,1729157045986,-505.75779406,0.00042465,60]
[340385735,1729157046024,-5000.0,0.000425,60]
[340385736,1729157046061,-2000.0,0.0004253,120]
[340385737,1729157046102,-2687.71,0.0004253,120]
[340385738,1729157046139,-515.13230025,0.00042739,60]
[340385739,1729157046180,-500.0,0.00042739,60]
[340385740,1729157046218,-589.45210839,0.00042739,60]
[340385741,1729157046454,-500.0,0.00042739,60]
[340385742,1729157046495,-519.18722269,0.00042739,60]
[340385743,1729157046533,-500.0,0.00042739,60]
[340385744,1729157046573,-915.19,0.00042739,60]
[340385745,1729157046610,-500.0,0.00042739,60]
[340385746,1729157046647,-508.29200043,0.00042739,60]
[340385747,1729157046683,-730.43,0.00042739,60]
[340385748,1729157046720,-554.32,0.00042739,60]
[340385749,1729157046756,-500.0,0.00042739,60]
[340385750,1729157046795,-624.66414376,0.00042739,60]
[340385751,1729157046838,-500.0,0.00042739,60]
[340385752,1729157046879,-500.0,0.00042739,60]
[340385753,1729157046921,-500.0,0.00042739,60]
[340385754,1729157046962,-1062.75,0.00042739,60]
[340385755,1729157047002,-500.0,0.00042739,60]
[340385756,1729157047043,-571.43741298,0.00042739,60]
[340385757,1729157047084,-500.0,0.00042739,60]
[340385758,1729157047124,-500.0,0.00042739,60]
[340385759,1729157047165,-639.80059562,0.00042739,60]
[340385760,1729157047209,-852.83,0.00042739,60]
[340385761,1729157047249,-500.0,0.00042739,60]
[340385762,1729157047289,-1009.02,0.00042739,60]
[340385763,1729157047327,-500.0,0.00042739,60]
[340385764,1729157047366,-813.74,0.00042739,60]
[340385765,1729157047407,-500.0,0.00042739,60]
[340385766,1729157047444,-515.77175315,0.00042739,60]
[340385767,1729157047479,-500.0,0.00042739,60]
[340385768,1729157047518,-1487.27,0.00042739,60]
[340385769,1729157047556,-500.0,0.00042739,60]
[340385770,1729157047593,-555.42881973,0.00042739,60]
[340385771,1729157047627,-500.0,0.00042739,60]
[340385772,1729157047662,-943.06,0.00042739,60]
[340385773,1729157047698,-500.0,0.00042739,60]
[340385774,1729157047735,-895.4,0.00042739,60]
[340385775,1729157047772,-500.0,0.00042739,60]
[340385776,1729157047810,-513.75699145,0.00042739,60]
[340385777,1729157047848,-1327.31,0.00042739,60]
[340385778,1729157047889,-500.0,0.00042739,60]
[340385779,1729157047933,-500.0,0.00042739,60]
[340385780,1729157047978,-709.16,0.00042739,60]
[340385781,1729157048018,-478.73481286,0.00042739,60]
[340385782,1729157048059,-500.0,0.00042739,60]
[340385783,1729157048106,-500.0,0.00042739,60]
[340385784,1729157048155,-500.0,0.00042739,60]
[340385785,1729157048201,-500.0,0.00042739,60]
[340385786,1729157048248,-927.2,0.00042739,60]
[340385787,1729157048289,-546.24922825,0.00042739,60]
[340385788,1729157048330,-500.0,0.00042739,60]
[340385789,1729157048371,-500.0,0.00042739,60]
[340385790,1729157048411,-500.0,0.00042739,60]
[340385791,1729157048452,-500.0,0.00042739,60]
[340385792,1729157048489,-500.0,0.00042739,60]
[340385793,1729157048526,-1003.98,0.00042739,60]
[340385794,1729157048562,-590.2,0.00042739,60]
[340385795,1729157048600,-362.07324249,0.00042739,60]
[340385796,1729157048642,-500.0,0.00042739,60]
[340385797,1729157048680,-500.0,0.00042739,60]
[340385798,1729157048716,-500.0,0.00042739,60]
[340385799,1729157048753,-500.0,0.00042739,60]
[340385800,1729157048790,-581.62,0.00042739,60]
[340385801,1729157048827,-979.17,0.00042739,60]
[340385802,1729157048864,-1036.02,0.00042739,60]
[340385803,1729157048904,-500.0,0.00042739,60]
[340385804,1729157048942,-500.0,0.00042739,60]
[340385805,1729157048979,-500.0,0.00042739,60]
[340385806,1729157049018,-500.0,0.00042739,60]
[340385807,1729157049057,-500.0,0.00042739,60]
[340385808,1729157049100,-783.88,0.00042739,60]
[340385809,1729157049143,-500.0,0.00042739,60]
[340385810,1729157049184,-500.0,0.00042739,60]
[340385811,1729157049225,-500.0,0.00042739,60]
[340385812,1729157049268,-500.0,0.00042739,60]
[340385813,1729157049311,-500.0,0.00042739,60]
[340385814,1729157049354,-890.34,0.00042739,60]
[340385815,1729157049395,-500.0,0.00042739,60]
[340385816,1729157049437,-630.62,0.00042739,60]
[340385817,1729157049478,-665.23,0.00042739,60]
[340385818,1729157049519,-1089.03,0.00042739,60]
[340385819,1729157049558,-566.05,0.00042739,60]
[340385820,1729157049597,-500.0,0.00042739,60]
[340385821,1729157049636,-500.0,0.00042739,60]
[340385822,1729157049672,-814.54,0.00042739,60]
[340385823,1729157049711,-575.83,0.00042739,60]
[340385824,1729157049750,-500.0,0.00042739,60]
[340385825,1729157049792,-500.0,0.00042739,60]
[340385826,1729157049833,-1433.2,0.00042739,60]
[340385827,1729157049873,-500.0,0.00042739,60]
[340385828,1729157049916,-500.0,0.00042739,60]
[340385829,1729157049958,-542.84,0.00042739,60]
[340385830,1729157050001,-500.0,0.00042739,60]
[340385831,1729157050044,-500.0,0.00042739,60]
[340385832,1729157050094,-500.0,0.00042739,60]
[340385833,1729157050140,-500.0,0.00042739,60]
[340385834,1729157050182,-2442.96,0.00042739,60]
[340385835,1729157050219,-500.0,0.00042739,60]
[340385836,1729157050255,-500.0,0.00042739,60]
[340385837,1729157050292,-500.0,0.00042739,60]
[340385838,1729157050328,-500.0,0.00042739,60]
[340385839,1729157050367,-1194.49,0.00042739,60]
[340385840,1729157050404,-2561.43,0.00042739,60]
[340385841,1729157050443,-579.90446784,0.00042739,60]
[340385842,1729157050484,-827.35,0.00042739,60]
[340385843,1729157050520,-1082.7,0.00042739,60]
[340385844,1729157050556,-500.0,0.00042739,60]
[340385845,1729157050768,-760.91,0.00042739,60]
[340385846,1729157050808,-500.0,0.00042739,60]
[340385847,1729157050843,-500.0,0.00042739,60]
[340385848,1729157050878,-338.40622597,0.00042739,60]
[340385849,1729157050914,-541.54488355,0.00042739,60]
[340385850,1729157050957,-500.0,0.00042739,60]
[340385851,1729157050994,-500.0,0.00042739,60]
[340385852,1729157051031,-500.0,0.00042739,60]
[340385853,1729157051067,-500.0,0.00042739,60]
[340385854,1729157051105,-500.0,0.00042739,60]
[340385855,1729157051141,-1109.25,0.00042739,60]
[340385856,1729157051177,-500.0,0.00042739,60]
[340385857,1729157051214,-5116.54,0.00042739,60]
[340385858,1729157051250,-935.2,0.00042739,60]
[340385859,1729157051286,-500.0,0.00042739,60]
[340385860,1729157051322,-866.24,0.00042739,60]
[340385861,1729157051360,-500.0,0.00042739,60]
[340385862,1729157051398,-500.0,0.00042739,60]
[340385863,1729157051435,-1240.33,0.00042739,60]
[340385864,1729157051470,-500.0,0.00042739,60]
[340385865,1729157051506,-901.88,0.00042739,60]
[340385866,1729157051541,-500.0,0.00042739,60]
[340385867,1729157051577,-500.0,0.00042739,60]
[340385868,1729157051612,-500.0,0.00042739,60]
[340385869,1729157051649,-1035.23,0.00042739,60]
[340385870,1729157051685,-625.07376609,0.00042739,60]
[340385871,1729157051721,-500.0,0.00042739,60]
[340385872,1729157051757,-657.41,0.00042739,60]
[340385873,1729157051793,-500.0,0.00042739,60]
[340385874,1729157051830,-500.0,0.00042739,60]
[340385875,1729157051868,-340.21642726,0.00042739,60]
[340385876,1729157051907,-500.0,0.00042739,60]
[340385877,1729157051950,-500.0,0.00042739,60]
[340385878,1729157051988,-500.0,0.00042739,60]
[340385879,1729157052025,-500.0,0.00042739,60]
[340385880,1729157052060,-500.0,0.00042739,60]
[340385881,1729157052100,-500.0,0.00042739,60]
[340385882,1729157052138,-500.0,0.00042739,60]
[340385883,1729157052175,-422.13132989,0.00042739,60]
[340385884,1729157052213,-500.0,0.00042739,60]
[340385885,1729157052250,-973.81,0.00042739,60]
[340385886,1729157052288,-500.0,0.00042739,60]
[340385887,1729157052325,-1458.33,0.00042739,60]
[340385888,1729157052362,-762.66,0.00042739,60]
[340385889,1729157052398,-500.0,0.00042739,60]
[340385890,1729157052434,-1353.67,0.00042739,60]
[340385891,1729157052471,-500.0,0.00042739,60]
[340385892,1729157052509,-500.0,0.00042739,60]
[340385893,1729157052546,-650.71,0.00042739,60]
[340385894,1729157052585,-500.0,0.00042739,60]
[340385895,1729157052621,-259.23332331,0.00042739,60]
[340385896,1729157052657,-500.0,0.00042739,60]
[340385897,1729157052692,-515.22053784,0.00042739,60]
[340385898,1729157052728,-835.54,0.00042739,60]
[340385899,1729157052762,-1182.57,0.00042739,60]
[340385900,1729157052798,-500.0,0.00042739,60]
[340385901,1729157052835,-583.80296189,0.00042739,60]
[340385902,1729157052871,-500.0,0.00042739,60]
[340385903,1729157052909,-898.16,0.00042739,60]
[340385904,1729157052945,-500.0,0.00042739,60]
[340385905,1729157052980,-759.22,0.00042739,60]
[340385906,1729157053018,-500.0,0.00042739,60]
[340385907,1729157053056,-500.0,0.00042739,60]
[340385908,1729157053098,-500.0,0.00042739,60]
[340385909,1729157053139,-788.25,0.00042739,60]
[340385910,1729157053181,-829.97,0.00042739,120]
[340385911,1729157053221,-500.0,0.00042739,60]
[340385912,1729157053263,-1391.58693883,0.00042739,60]
[340385914,1729157056898,2541.44642585,0.000168,12]
[340385915,1729157072220,-1177.7,0.00041095,60]
[340385916,1729157072263,-500.0,0.00041095,60]
[340385917,1729157072302,-500.0,0.00041095,60]
[340385918,1729157072342,-500.0,0.00041095,60]
[340385919,1729157072379,-1002.78,0.00041095,60]
[340385920,1729157072420,-546.97416241,0.00041095,60]
[340385921,1729157072456,-570.47563533,0.00041095,60]
[340385922,1729157072494,-500.0,0.00041095,60]
[340385923,1729157072532,-500.0,0.00041095,60]
[340385924,1729157072569,-500.0,0.00041095,60]
[340385925,1729157072607,-572.60118257,0.00041095,60]
[340385926,1729157072646,-531.82248796,0.00041095,60]
[340385927,1729157072683,-500.0,0.00041095,60]
[340385928,1729157072721,-796.65,0.00041095,60]
[340385929,1729157072760,-767.61,0.00041095,60]
[340385930,1729157072799,-500.0,0.00041095,60]
[340385931,1729157072836,-500.0,0.00041095,60]
[340385932,1729157072872,-500.0,0.00041095,60]
[340385933,1729157072911,-500.0,0.00041095,60]
[340385934,1729157072948,-500.0,0.00041095,60]
[340385935,1729157072984,-502.32,0.00041095,60]
[340385936,1729157073022,-1996.04,0.00041095,60]
[340385937,1729157073061,-668.0,0.00041095,60]